[Event "Titled Tuesday Blitz September 13 Late 2022"]
[White "Shimanov, Aleksandr"]
[Black "Todorovic, Bojan"]
[WhiteFideId "4198603"]
[BlackFideId "917087"]
[WhiteElo "2605"]
[BlackElo "2266"]
[Result "1-0"]
[Round "03"]
[TimeControl "180+1"]
[Date "2022.09.13"]
[WhiteClock "0:01:49"]
[BlackClock "0:00:04"]

1. e4 {[%clk 0:03:00]}  c5 {[%clk 0:02:59]} 2. Nf3 {[%clk 0:03:00]}  Nc6 {[%clk 0:02:58]} 3. Nc3 {[%clk 0:03:00]}  e5 {[%clk 0:02:55]} 4. Bc4 {[%clk 0:02:59]}  Be7 {[%clk 0:02:53]} 5. d3 {[%clk 0:02:59]}  d6 {[%clk 0:02:50]} 6. a4 {[%clk 0:02:55]}  Nf6 {[%clk 0:02:47]} 7. Bg5 {[%clk 0:02:55]}  Nd7 {[%clk 0:02:27]} 8. Be3 {[%clk 0:02:50]}  O-O {[%clk 0:02:24]} 9. Nd5 {[%clk 0:02:47]}  Nf6 {[%clk 0:02:21]} 10. h3 {[%clk 0:02:45]}  Nxd5 {[%clk 0:02:17]} 11. Bxd5 {[%clk 0:02:46]}  Be6 {[%clk 0:02:16]} 12. c3 {[%clk 0:02:35]}  Bxd5 {[%clk 0:02:12]} 13. exd5 {[%clk 0:02:35]}  Nb8 {[%clk 0:02:12]} 14. O-O {[%clk 0:02:34]}  Nd7 {[%clk 0:02:12]} 15. b4 {[%clk 0:02:31]}  cxb4 {[%clk 0:02:02]} 16. cxb4 {[%clk 0:02:31]}  f5 {[%clk 0:01:56]} 17. Qb3 {[%clk 0:02:30]}  Qe8 {[%clk 0:01:45]} 18. Rac1 {[%clk 0:02:29]}  Bd8 {[%clk 0:01:33]} 19. a5 {[%clk 0:02:25]}  Qg6 {[%clk 0:01:24]} 20. Kh1 {[%clk 0:02:24]}  h6 {[%clk 0:01:15]} 21. Rc4 {[%clk 0:02:15]}  e4 {[%clk 0:01:06]} 22. dxe4 {[%clk 0:02:12]}  fxe4 {[%clk 0:01:03]} 23. Nd2 {[%clk 0:02:13]}  Ne5 {[%clk 0:01:02]} 24. Rxe4 {[%clk 0:02:12]}  Bg5 {[%clk 0:00:55]} 25. f4 {[%clk 0:02:11]}  Bh4 {[%clk 0:00:44]} 26. Qb1 {[%clk 0:02:02]}  Nd7 {[%clk 0:00:17]} 27. f5 {[%clk 0:01:53]}  Qh5 {[%clk 0:00:16]} 28. g4 {[%clk 0:01:52]}  Qf7 {[%clk 0:00:14]} 29. Re6 {[%clk 0:01:53]}  Nf6 {[%clk 0:00:11]} 30. Qd3 {[%clk 0:01:52]}  Rad8 {[%clk 0:00:06]} 31. Bxa7 {[%clk 0:01:50]}  Nd7 {[%clk 0:00:06]} 32. Nc4 {[%clk 0:01:50]}  Bf6 {[%clk 0:00:04]} 33. Nxd6 {[%clk 0:01:49]} 1-0


[Site "https://www.chess.com"]

[Event "Titled Tuesday Blitz September 13 Late 2022"]
[White "Sliwicki, Damian"]
[Black "Salem, A.R. Saleh"]
[WhiteFideId "1127128"]
[BlackFideId "9301348"]
[WhiteElo "2135"]
[BlackElo "2628"]
[Result "1/2-1/2"]
[Round "03"]
[TimeControl "180+1"]
[Date "2022.09.13"]
[WhiteClock "0:01:55"]
[BlackClock "0:00:58"]

1. e4 {[%clk 0:03:00]}  c5 {[%clk 0:03:00]} 2. Nf3 {[%clk 0:03:00]}  d6 {[%clk 0:03:01]} 3. d4 {[%clk 0:02:59]}  cxd4 {[%clk 0:03:02]} 4. Qxd4 {[%clk 0:02:59]}  Nf6 {[%clk 0:03:02]} 5. Bg5 {[%clk 0:02:59]}  Nc6 {[%clk 0:03:00]} 6. Bb5 {[%clk 0:03:00]}  Bd7 {[%clk 0:03:01]} 7. Bxc6 {[%clk 0:03:00]}  Bxc6 {[%clk 0:03:02]} 8. Nc3 {[%clk 0:03:00]}  e6 {[%clk 0:03:02]} 9. O-O-O {[%clk 0:03:00]}  Be7 {[%clk 0:03:03]} 10. Rhe1 {[%clk 0:03:00]}  h6 {[%clk 0:02:46]} 11. Bh4 {[%clk 0:02:56]}  O-O {[%clk 0:02:42]} 12. Kb1 {[%clk 0:02:56]}  Qc7 {[%clk 0:02:32]} 13. g4 {[%clk 0:02:51]}  Nxg4 {[%clk 0:01:54]} 14. Rg1 {[%clk 0:02:49]}  Ne5 {[%clk 0:01:34]} 15. Bxe7 {[%clk 0:02:48]}  Qxe7 {[%clk 0:01:35]} 16. Nxe5 {[%clk 0:02:48]}  dxe5 {[%clk 0:01:36]} 17. Qxe5 {[%clk 0:02:49]}  f6 {[%clk 0:01:36]} 18. Qh5 {[%clk 0:02:46]}  Rfd8 {[%clk 0:01:29]} 19. Rde1 {[%clk 0:02:33]}  Kf8 {[%clk 0:01:22]} 20. Qg6 {[%clk 0:02:21]}  Qf7 {[%clk 0:01:19]} 21. Qh7 {[%clk 0:02:20]}  Rd7 {[%clk 0:01:16]} 22. Re3 {[%clk 0:02:08]}  Qg8 {[%clk 0:01:08]} 23. Qg6 {[%clk 0:02:05]}  Qf7 {[%clk 0:01:09]} 24. Qh7 {[%clk 0:01:56]}  Qg8 {[%clk 0:01:06]} 25. Qg6 {[%clk 0:01:55]}  Qf7 {[%clk 0:00:58]} 26. Qh7 {[%clk 0:01:55]} 1/2-1/2


[Site "https://www.chess.com"]

[Event "Titled Tuesday Blitz September 13 Late 2022"]
[White "Tari, Aryan"]
[Black "Dimitrov, Atanas"]
[WhiteFideId "1510045"]
[BlackFideId "2901315"]
[WhiteElo "2612"]
[BlackElo "2666"]
[Result "1-0"]
[Round "03"]
[TimeControl "180+1"]
[Date "2022.09.13"]
[WhiteClock "0:00:40"]
[BlackClock "0:00:40"]

1. e4 {[%clk 0:02:59]}  c5 {[%clk 0:03:00]} 2. Nc3 {[%clk 0:02:58]}  d6 {[%clk 0:02:57]} 3. f4 {[%clk 0:02:58]}  g6 {[%clk 0:02:57]} 4. Nf3 {[%clk 0:02:56]}  Bg7 {[%clk 0:02:58]} 5. Bb5+ {[%clk 0:02:56]}  Bd7 {[%clk 0:02:58]} 6. Bc4 {[%clk 0:02:52]}  Nc6 {[%clk 0:02:56]} 7. d3 {[%clk 0:02:52]}  Nf6 {[%clk 0:02:55]} 8. e5 {[%clk 0:02:47]}  dxe5 {[%clk 0:02:52]} 9. fxe5 {[%clk 0:02:48]}  Nh5 {[%clk 0:02:34]} 10. e6 {[%clk 0:02:36]}  Bxe6 {[%clk 0:02:21]} 11. Bxe6 {[%clk 0:02:33]}  fxe6 {[%clk 0:02:21]} 12. Qe2 {[%clk 0:02:30]}  Qd7 {[%clk 0:02:17]} 13. Ne4 {[%clk 0:02:07]}  b6 {[%clk 0:02:06]} 14. c3 {[%clk 0:01:58]}  O-O {[%clk 0:02:01]} 15. Be3 {[%clk 0:01:51]}  Rad8 {[%clk 0:01:58]} 16. Rd1 {[%clk 0:01:51]}  e5 {[%clk 0:01:55]} 17. g3 {[%clk 0:01:38]}  Nf6 {[%clk 0:01:51]} 18. O-O {[%clk 0:01:36]}  Nd5 {[%clk 0:01:27]} 19. Bc1 {[%clk 0:01:32]}  h6 {[%clk 0:01:25]} 20. Nh4 {[%clk 0:01:29]}  Qe6 {[%clk 0:01:22]} 21. Kg2 {[%clk 0:01:23]}  Kh7 {[%clk 0:01:22]} 22. Nf3 {[%clk 0:01:23]}  Qg4 {[%clk 0:01:19]} 23. Nfg5+ {[%clk 0:01:22]}  Qxg5 {[%clk 0:01:08]} 24. Bxg5 {[%clk 0:01:20]}  hxg5 {[%clk 0:01:07]} 25. Nxg5+ {[%clk 0:01:18]}  Kg8 {[%clk 0:01:08]} 26. Ne6 {[%clk 0:01:16]}  Rxf1 {[%clk 0:01:07]} 27. Rxf1 {[%clk 0:01:17]}  Rd6 {[%clk 0:01:08]} 28. Ng5 {[%clk 0:01:02]}  Nf6 {[%clk 0:01:04]} 29. Ne4 {[%clk 0:01:02]}  Rd8 {[%clk 0:01:01]} 30. Nxf6+ {[%clk 0:00:56]}  exf6 {[%clk 0:01:02]} 31. Qe4 {[%clk 0:00:56]}  Rd6 {[%clk 0:01:02]} 32. Qxg6 {[%clk 0:00:57]}  Kf8 {[%clk 0:01:00]} 33. g4 {[%clk 0:00:55]}  Ne7 {[%clk 0:00:59]} 34. Qe4 {[%clk 0:00:55]}  Kf7 {[%clk 0:00:58]} 35. g5 {[%clk 0:00:52]}  f5 {[%clk 0:00:57]} 36. Rxf5+ {[%clk 0:00:52]}  Nxf5 {[%clk 0:00:57]} 37. Qxf5+ {[%clk 0:00:53]}  Ke7 {[%clk 0:00:57]} 38. h4 {[%clk 0:00:53]}  c4 {[%clk 0:00:56]} 39. dxc4 {[%clk 0:00:51]}  Rd2+ {[%clk 0:00:56]} 40. Kf3 {[%clk 0:00:52]}  Rd1 {[%clk 0:00:55]} 41. Kg4 {[%clk 0:00:48]}  Rd8 {[%clk 0:00:49]} 42. Qh7 {[%clk 0:00:43]}  Kf7 {[%clk 0:00:47]} 43. Kf5 {[%clk 0:00:42]}  Rf8 {[%clk 0:00:43]} 44. h5 {[%clk 0:00:40]}  Ke8+ {[%clk 0:00:41]} 45. Ke6 {[%clk 0:00:40]}  Rf7 {[%clk 0:00:40]} 46. Qg8+ {[%clk 0:00:40]}  Bf8 {[%clk 0:00:40]} 47. Qxf7+ {[%clk 0:00:40]} 1-0


[Site "https://www.chess.com"]

[Event "Titled Tuesday Blitz September 13 Late 2022"]
[White "Tatarinov, Dmitry"]
[Black "Sjugirov, Sanan"]
[WhiteFideId "24160067"]
[BlackFideId "4189302"]
[WhiteElo "2324"]
[BlackElo "2609"]
[Result "1-0"]
[Round "03"]
[TimeControl "180+1"]
[Date "2022.09.13"]
[WhiteClock "0:00:12"]
[BlackClock "0:00:03"]

1. d4 {[%clk 0:03:00]}  d5 {[%clk 0:02:57]} 2. Nf3 {[%clk 0:03:00]}  e6 {[%clk 0:02:57]} 3. c4 {[%clk 0:03:01]}  a6 {[%clk 0:02:57]} 4. cxd5 {[%clk 0:02:59]}  exd5 {[%clk 0:02:58]} 5. Nc3 {[%clk 0:02:59]}  h6 {[%clk 0:02:57]} 6. g3 {[%clk 0:02:51]}  Nf6 {[%clk 0:02:56]} 7. Bg2 {[%clk 0:02:52]}  c6 {[%clk 0:02:56]} 8. O-O {[%clk 0:02:53]}  Bd6 {[%clk 0:02:56]} 9. b3 {[%clk 0:02:53]}  O-O {[%clk 0:02:55]} 10. Bb2 {[%clk 0:02:54]}  Re8 {[%clk 0:02:56]} 11. Qc2 {[%clk 0:02:54]}  Nbd7 {[%clk 0:02:56]} 12. Rfe1 {[%clk 0:02:54]}  Nf8 {[%clk 0:02:50]} 13. Ne5 {[%clk 0:02:49]}  Bxe5 {[%clk 0:02:43]} 14. dxe5 {[%clk 0:02:50]}  Rxe5 {[%clk 0:02:44]} 15. Rad1 {[%clk 0:02:39]}  Qe7 {[%clk 0:02:05]} 16. e4 {[%clk 0:02:32]}  Bg4 {[%clk 0:01:40]} 17. f3 {[%clk 0:02:29]}  Bh5 {[%clk 0:01:40]} 18. Nxd5 {[%clk 0:02:25]}  cxd5 {[%clk 0:01:34]} 19. Bxe5 {[%clk 0:02:22]}  Qxe5 {[%clk 0:01:34]} 20. exd5 {[%clk 0:02:08]}  Qd6 {[%clk 0:01:32]} 21. Qf2 {[%clk 0:01:59]}  Rd8 {[%clk 0:01:28]} 22. Qa7 {[%clk 0:01:50]}  b5 {[%clk 0:01:08]} 23. Qb7 {[%clk 0:01:37]}  N8d7 {[%clk 0:00:57]} 24. Qc6 {[%clk 0:01:36]}  Nb6 {[%clk 0:00:35]} 25. g4 {[%clk 0:01:21]}  Bg6 {[%clk 0:00:35]} 26. h3 {[%clk 0:01:21]}  Qb8 {[%clk 0:00:19]} 27. d6 {[%clk 0:01:16]}  Rc8 {[%clk 0:00:18]} 28. d7 {[%clk 0:01:14]}  Nfxd7 {[%clk 0:00:17]} 29. Qd6 {[%clk 0:01:13]}  Qxd6 {[%clk 0:00:14]} 30. Rxd6 {[%clk 0:01:12]}  Kf8 {[%clk 0:00:09]} 31. f4 {[%clk 0:01:12]}  f6 {[%clk 0:00:07]} 32. Bc6 {[%clk 0:01:10]}  Be8 {[%clk 0:00:05]} 33. Re2 {[%clk 0:01:03]}  Rc7 {[%clk 0:00:05]} 34. Kf2 {[%clk 0:01:02]}  Nc8 {[%clk 0:00:05]} 35. Rde6 {[%clk 0:00:56]}  Bf7 {[%clk 0:00:05]} 36. Bxd7 {[%clk 0:00:56]}  Rxd7 {[%clk 0:00:03]} 37. Rxa6 {[%clk 0:00:56]}  Rc7 {[%clk 0:00:02]} 38. Ra8 {[%clk 0:00:52]}  Be8 {[%clk 0:00:03]} 39. Rd2 {[%clk 0:00:50]}  Ke7 {[%clk 0:00:03]} 40. Rb8 {[%clk 0:00:49]}  Bd7 {[%clk 0:00:03]} 41. Re2+ {[%clk 0:00:38]}  Kf7 {[%clk 0:00:03]} 42. Ra8 {[%clk 0:00:29]}  Nd6 {[%clk 0:00:03]} 43. a4 {[%clk 0:00:29]}  bxa4 {[%clk 0:00:02]} 44. bxa4 {[%clk 0:00:30]}  f5 {[%clk 0:00:03]} 45. gxf5 {[%clk 0:00:24]}  Bxf5 {[%clk 0:00:04]} 46. a5 {[%clk 0:00:22]}  Ne4+ {[%clk 0:00:04]} 47. Kf3 {[%clk 0:00:22]}  Nc3 {[%clk 0:00:05]} 48. Re5 {[%clk 0:00:21]}  Bd7 {[%clk 0:00:04]} 49. Kf2 {[%clk 0:00:19]}  Bc6 {[%clk 0:00:03]} 50. Rh8 {[%clk 0:00:17]}  Nd1+ {[%clk 0:00:03]} 51. Ke1 {[%clk 0:00:17]}  Nb2 {[%clk 0:00:03]} 52. Kf1 {[%clk 0:00:15]}  Nd3 {[%clk 0:00:03]} 53. Re3 {[%clk 0:00:15]}  Nxf4 {[%clk 0:00:03]} 54. Rb8 {[%clk 0:00:13]}  Ra7 {[%clk 0:00:02]} 55. Ra3 {[%clk 0:00:11]}  Ne6 {[%clk 0:00:02]} 56. Rb6 {[%clk 0:00:11]}  Bd5 {[%clk 0:00:02]} 57. a6 {[%clk 0:00:11]}  g5 {[%clk 0:00:02]} 58. Kg1 {[%clk 0:00:11]}  h5 {[%clk 0:00:02]} 59. Kh2 {[%clk 0:00:12]}  h4 {[%clk 0:00:02]} 60. Ra5 {[%clk 0:00:12]}  Bf3 {[%clk 0:00:02]} 61. Rf5+ {[%clk 0:00:12]}  Ke7 {[%clk 0:00:02]} 62. Rxf3 {[%clk 0:00:13]}  Nd4 {[%clk 0:00:02]} 63. Re3+ {[%clk 0:00:13]}  Kf7 {[%clk 0:00:03]} 64. Rh6 {[%clk 0:00:13]}  Kg7 {[%clk 0:00:03]} 65. Rb6 {[%clk 0:00:13]}  Nf5 {[%clk 0:00:03]} 66. Rb7+ {[%clk 0:00:12]} 1-0


[Site "https://www.chess.com"]

[Event "Titled Tuesday Blitz September 13 Late 2022"]
[White "Ter-Sahakyan, Samvel"]
[Black "Papasimakopoulos, Alexandros"]
[WhiteFideId "13302531"]
[BlackFideId "4244125"]
[WhiteElo "2604"]
[BlackElo "2357"]
[Result "1-0"]
[Round "03"]
[TimeControl "180+1"]
[Date "2022.09.13"]
[WhiteClock "0:00:22"]
[BlackClock "0:01:21"]

1. e4 {[%clk 0:03:00]}  e6 {[%clk 0:03:00]} 2. d4 {[%clk 0:02:59]}  d5 {[%clk 0:03:00]} 3. Nc3 {[%clk 0:02:59]}  Bb4 {[%clk 0:02:59]} 4. e5 {[%clk 0:02:59]}  b6 {[%clk 0:02:59]} 5. Qg4 {[%clk 0:02:52]}  Bf8 {[%clk 0:02:59]} 6. h4 {[%clk 0:02:40]}  h5 {[%clk 0:02:55]} 7. Qg3 {[%clk 0:02:37]}  Ne7 {[%clk 0:02:56]} 8. Bg5 {[%clk 0:02:34]}  Ba6 {[%clk 0:02:51]} 9. Bxa6 {[%clk 0:02:32]}  Nxa6 {[%clk 0:02:51]} 10. O-O-O {[%clk 0:02:17]}  Qd7 {[%clk 0:02:46]} 11. Bxe7 {[%clk 0:02:05]}  Bxe7 {[%clk 0:02:42]} 12. Qxg7 {[%clk 0:01:59]}  O-O-O {[%clk 0:02:40]} 13. Qg3 {[%clk 0:01:57]}  Rdg8 {[%clk 0:02:36]} 14. Qf3 {[%clk 0:01:50]}  Rg4 {[%clk 0:02:30]} 15. Nge2 {[%clk 0:01:50]}  Rhg8 {[%clk 0:02:27]} 16. g3 {[%clk 0:01:50]}  Bf8 {[%clk 0:02:19]} 17. Kb1 {[%clk 0:01:50]}  Bh6 {[%clk 0:02:19]} 18. a3 {[%clk 0:01:47]}  Kb7 {[%clk 0:02:16]} 19. Qd3 {[%clk 0:01:11]}  Nb8 {[%clk 0:02:13]} 20. f3 {[%clk 0:01:06]}  R4g6 {[%clk 0:02:13]} 21. f4 {[%clk 0:01:06]}  Nc6 {[%clk 0:02:11]} 22. Qf3 {[%clk 0:01:05]}  Rg4 {[%clk 0:02:10]} 23. Rdg1 {[%clk 0:01:04]}  Ne7 {[%clk 0:02:10]} 24. Nd1 {[%clk 0:01:03]}  Nf5 {[%clk 0:02:02]} 25. Nf2 {[%clk 0:00:59]}  c5 {[%clk 0:02:02]} 26. Nxg4 {[%clk 0:00:58]}  Rxg4 {[%clk 0:02:01]} 27. dxc5 {[%clk 0:00:55]}  bxc5 {[%clk 0:02:01]} 28. c4 {[%clk 0:00:55]}  Kb8 {[%clk 0:01:49]} 29. cxd5 {[%clk 0:00:52]}  exd5 {[%clk 0:01:49]} 30. Rc1 {[%clk 0:00:51]}  Bf8 {[%clk 0:01:43]} 31. Rhd1 {[%clk 0:00:50]}  d4 {[%clk 0:01:38]} 32. Rd3 {[%clk 0:00:47]}  a5 {[%clk 0:01:29]} 33. Rb3+ {[%clk 0:00:31]}  Ka7 {[%clk 0:01:29]} 34. Qd3 {[%clk 0:00:31]}  Ne3 {[%clk 0:01:23]} 35. Rb5 {[%clk 0:00:24]}  Qf5 {[%clk 0:01:21]} 36. Rxa5+ {[%clk 0:00:22]}  Kb6 {[%clk 0:01:21]} 37. Rb5+ {[%clk 0:00:22]}  Kc6 {[%clk 0:01:21]} 38. Nxd4+ {[%clk 0:00:22]} 1-0


[Site "https://www.chess.com"]

[Event "Titled Tuesday Blitz September 13 Late 2022"]
[White "Trost, Edvin"]
[Black "Zhigalko, Sergei"]
[WhiteFideId "1729519"]
[BlackFideId "13502956"]
[WhiteElo "2186"]
[BlackElo "2662"]
[Result "0-1"]
[Round "03"]
[TimeControl "180+1"]
[Date "2022.09.13"]
[WhiteClock "0:00:07"]
[BlackClock "0:00:11"]

1. Nf3 {[%clk 0:03:00]}  d5 {[%clk 0:02:59]} 2. b3 {[%clk 0:02:59]}  Bf5 {[%clk 0:02:58]} 3. Bb2 {[%clk 0:02:59]}  e6 {[%clk 0:02:58]} 4. g3 {[%clk 0:02:58]}  h6 {[%clk 0:02:56]} 5. Bg2 {[%clk 0:02:57]}  Nf6 {[%clk 0:02:56]} 6. O-O {[%clk 0:02:55]}  Be7 {[%clk 0:02:56]} 7. d3 {[%clk 0:02:54]}  O-O {[%clk 0:02:55]} 8. Nbd2 {[%clk 0:02:50]}  a5 {[%clk 0:02:53]} 9. a4 {[%clk 0:02:50]}  c6 {[%clk 0:02:50]} 10. Re1 {[%clk 0:02:49]}  Bh7 {[%clk 0:02:50]} 11. e4 {[%clk 0:02:46]}  Na6 {[%clk 0:02:51]} 12. Ne5 {[%clk 0:02:36]}  Qb6 {[%clk 0:02:48]} 13. Qe2 {[%clk 0:02:28]}  Rad8 {[%clk 0:02:46]} 14. Rac1 {[%clk 0:02:27]}  Nb4 {[%clk 0:02:36]} 15. h4 {[%clk 0:02:11]}  Bc5 {[%clk 0:01:53]} 16. Rf1 {[%clk 0:02:06]}  Na2 {[%clk 0:01:44]} 17. Ra1 {[%clk 0:02:06]}  Nb4 {[%clk 0:01:44]} 18. Rac1 {[%clk 0:02:06]}  Rfe8 {[%clk 0:01:40]} 19. Ng4 {[%clk 0:02:05]}  Nxg4 {[%clk 0:01:29]} 20. Qxg4 {[%clk 0:02:06]}  Bd4 {[%clk 0:01:08]} 21. Bxd4 {[%clk 0:00:29]}  Qxd4 {[%clk 0:01:08]} 22. c3 {[%clk 0:00:30]}  Qxd3 {[%clk 0:01:06]} 23. Rfd1 {[%clk 0:00:30]}  Na2 {[%clk 0:01:01]} 24. Bf1 {[%clk 0:00:29]}  Nxc1 {[%clk 0:00:46]} 25. Bxd3 {[%clk 0:00:28]}  Nxd3 {[%clk 0:00:47]} 26. Qe2 {[%clk 0:00:25]}  Nc5 {[%clk 0:00:35]} 27. e5 {[%clk 0:00:11]}  Bc2 {[%clk 0:00:28]} 28. Rc1 {[%clk 0:00:09]}  Bh7 {[%clk 0:00:29]} 29. Qe3 {[%clk 0:00:09]}  Nd7 {[%clk 0:00:25]} 30. f4 {[%clk 0:00:08]}  c5 {[%clk 0:00:19]} 31. Nf3 {[%clk 0:00:07]}  Rb8 {[%clk 0:00:20]} 32. Ra1 {[%clk 0:00:03]}  b5 {[%clk 0:00:16]} 33. axb5 {[%clk 0:00:04]}  Rxb5 {[%clk 0:00:17]} 34. Nd2 {[%clk 0:00:05]}  Reb8 {[%clk 0:00:13]} 35. Kf2 {[%clk 0:00:05]}  Bf5 {[%clk 0:00:11]} 36. Rg1 {[%clk 0:00:04]}  h5 {[%clk 0:00:11]} 37. Ra1 {[%clk 0:00:04]}  Nf8 {[%clk 0:00:08]} 38. Qe2 {[%clk 0:00:04]}  g6 {[%clk 0:00:08]} 39. Qe3 {[%clk 0:00:04]}  Nd7 {[%clk 0:00:07]} 40. Ra2 {[%clk 0:00:04]}  Kg7 {[%clk 0:00:06]} 41. Ra3 {[%clk 0:00:04]}  R8b7 {[%clk 0:00:06]} 42. Ra2 {[%clk 0:00:04]}  Nb8 {[%clk 0:00:07]} 43. Kg1 {[%clk 0:00:04]}  Nc6 {[%clk 0:00:07]} 44. Kh2 {[%clk 0:00:03]}  d4 {[%clk 0:00:08]} 45. cxd4 {[%clk 0:00:03]}  Nxd4 {[%clk 0:00:09]} 46. Ra3 {[%clk 0:00:01]}  Nc2 {[%clk 0:00:09]} 47. Qf3 {[%clk 0:00:01]}  Nxa3 {[%clk 0:00:09]} 48. Ne4 {[%clk 0:00:02]}  Bxe4 {[%clk 0:00:10]} 49. Qxe4 {[%clk 0:00:03]}  Rxb3 {[%clk 0:00:10]} 50. Kh3 {[%clk 0:00:02]}  Nb5 {[%clk 0:00:09]} 51. f5 {[%clk 0:00:02]}  Nd4 {[%clk 0:00:07]} 52. Qf4 {[%clk 0:00:02]}  Nxf5 {[%clk 0:00:07]} 53. Qg5 {[%clk 0:00:02]}  Rxg3+ {[%clk 0:00:07]} 54. Qxg3 {[%clk 0:00:03]}  Nxg3 {[%clk 0:00:08]} 55. Kxg3 {[%clk 0:00:04]}  Rb4 {[%clk 0:00:08]} 56. Kf3 {[%clk 0:00:04]}  Rg4 {[%clk 0:00:09]} 57. Ke3 {[%clk 0:00:05]}  Rxh4 {[%clk 0:00:09]} 58. Kd3 {[%clk 0:00:05]}  Rg4 {[%clk 0:00:10]} 59. Kc3 {[%clk 0:00:06]}  h4 {[%clk 0:00:10]} 60. Kb3 {[%clk 0:00:07]}  h3 {[%clk 0:00:11]} 0-1


[Site "https://www.chess.com"]

[Event "Titled Tuesday Blitz September 13 Late 2022"]
[White "Turski, Bartlomiej"]
[Black "Bortnyk, Olexandr"]
[WhiteFideId "21810567"]
[BlackFideId "14120828"]
[WhiteElo "2001"]
[BlackElo "2723"]
[Result "1-0"]
[Round "03"]
[TimeControl "180+1"]
[Date "2022.09.13"]
[WhiteClock "0:00:57"]
[BlackClock "0:00:51"]

1. e4 {[%clk 0:03:00]}  Nf6 {[%clk 0:02:59]} 2. e5 {[%clk 0:03:00]}  Nd5 {[%clk 0:02:54]} 3. d4 {[%clk 0:03:00]}  d6 {[%clk 0:02:54]} 4. c4 {[%clk 0:03:00]}  Nb6 {[%clk 0:02:54]} 5. exd6 {[%clk 0:03:01]}  exd6 {[%clk 0:02:55]} 6. Nc3 {[%clk 0:02:59]}  Be7 {[%clk 0:02:55]} 7. Nf3 {[%clk 0:02:56]}  O-O {[%clk 0:02:54]} 8. Be3 {[%clk 0:02:56]}  Nc6 {[%clk 0:02:53]} 9. b3 {[%clk 0:02:51]}  Bg4 {[%clk 0:02:52]} 10. Be2 {[%clk 0:02:48]}  Bf6 {[%clk 0:02:51]} 11. h3 {[%clk 0:02:43]}  Bh5 {[%clk 0:02:50]} 12. Rc1 {[%clk 0:02:37]}  Re8 {[%clk 0:02:48]} 13. O-O {[%clk 0:02:32]}  h6 {[%clk 0:02:47]} 14. Re1 {[%clk 0:02:28]}  Bg6 {[%clk 0:02:45]} 15. Bd3 {[%clk 0:02:25]}  Bxd3 {[%clk 0:02:45]} 16. Qxd3 {[%clk 0:02:26]}  d5 {[%clk 0:02:45]} 17. c5 {[%clk 0:02:23]}  Nc8 {[%clk 0:02:46]} 18. Nh2 {[%clk 0:02:20]}  N8e7 {[%clk 0:02:24]} 19. Ng4 {[%clk 0:02:18]}  Ng6 {[%clk 0:02:25]} 20. Nxf6+ {[%clk 0:02:11]}  Qxf6 {[%clk 0:02:26]} 21. Nxd5 {[%clk 0:02:10]}  Qd8 {[%clk 0:02:26]} 22. Nc3 {[%clk 0:02:08]}  Qh4 {[%clk 0:02:16]} 23. d5 {[%clk 0:02:04]}  Rad8 {[%clk 0:02:08]} 24. Qc4 {[%clk 0:01:58]}  Qxc4 {[%clk 0:02:08]} 25. bxc4 {[%clk 0:01:59]}  Nce5 {[%clk 0:02:08]} 26. Bd4 {[%clk 0:01:55]}  c6 {[%clk 0:01:56]} 27. Bxe5 {[%clk 0:01:52]}  Nxe5 {[%clk 0:01:53]} 28. Rb1 {[%clk 0:01:48]}  a5 {[%clk 0:01:36]} 29. d6 {[%clk 0:01:45]}  Re6 {[%clk 0:01:29]} 30. f4 {[%clk 0:01:39]}  Nd3 {[%clk 0:01:19]} 31. Rxe6 {[%clk 0:01:38]}  fxe6 {[%clk 0:01:20]} 32. Ne4 {[%clk 0:01:23]}  Rd7 {[%clk 0:01:18]} 33. g3 {[%clk 0:01:21]}  Kf7 {[%clk 0:01:15]} 34. a3 {[%clk 0:01:17]}  e5 {[%clk 0:01:14]} 35. f5 {[%clk 0:01:15]}  g6 {[%clk 0:01:13]} 36. f6 {[%clk 0:01:13]}  Ke6 {[%clk 0:01:06]} 37. Kg2 {[%clk 0:01:07]}  g5 {[%clk 0:00:57]} 38. Kf3 {[%clk 0:01:06]}  Kf5 {[%clk 0:00:52]} 39. Ke3 {[%clk 0:01:03]}  Nf4 {[%clk 0:00:52]} 40. gxf4 {[%clk 0:01:02]}  exf4+ {[%clk 0:00:53]} 41. Kf3 {[%clk 0:01:01]}  Rf7 {[%clk 0:00:51]} 42. Rd1 {[%clk 0:01:00]}  Rd7 {[%clk 0:00:51]} 43. f7 {[%clk 0:00:57]} 1-0


[Site "https://www.chess.com"]